bitfinex-derivatives/quotes_ETHF0:USTF0_20250428
["timestamp","ask_amount","ask_price","bid_price","bid_amount"]
[1745845762705,18.21287766,1808.6,1808.5,1.69068231]
[1745845762903,19.31820766,1808.6,1808.5,1.69068231]
[1745845763104,19.31823068,1808.6,1808.5,1.69068231]
[1745845764005,19.31823068,1808.6,1808.5,0.58529231]
[1745845764304,19.31823068,1808.6,1808.5,1.69068231]
[1745845764305,23.12023068,1808.6,1808.5,1.69068231]
[1745845764507,23.12023068,1808.6,1808.5,1.27595985]
[1745845764807,23.12037989,1808.6,1808.5,1.27595985]
[1745845765106,19.31837989,1808.6,1808.5,1.27595985]
[1745845766206,19.31841989,1808.6,1808.5,1.10539]
[1745845766904,1.10557,1808.2,1807.9,3.2078]
[1745845767105,1.10575,1807.9,1807.8,2.0969]
[1745845767412,1.10588,1807.7,1807.6,1.10591]
[1745845767605,0.43536739,1807.7,1807.4,4.3469]
[1745845767904,2.56726739,1807.6,1807.5,1.10597]
[1745845768107,9.01581739,1807.6,1807.4,2.0969]
[1745845768407,3.03899611,1807.5,1807.4,1.10602]
[1745845768808,3.08424735,1807.5,1807.4,1.10602]
[1745845769916,0.95234735,1807.5,1807.4,41.90602]
[1745845770211,0.95234735,1807.5,1807.4,46.32412]
[1745845770705,0.95234735,1807.5,1807.4,5.52412]
[1745845772209,0.95234735,1807.5,1807.4,14.32612]
[1745845773311,0.95234735,1807.5,1807.4,9.32612]
[1745845774712,7.33481997,1807.9,1807.8,1.10581]
[1745845775199,7.33481997,1807.9,1807.8,4.90781]
[1745845775509,7.33481997,1807.9,1807.8,7.02741]
[1745845775706,7.33481997,1807.9,1807.8,5.9216]
[1745845776107,2.2695,1807.9,1807.8,5.9216]
[1745845776309,2.2695,1807.9,1807.8,2.1196]
[1745845777008,2.2695,1807.9,1807.8,3.22541]
[1745845777210,3.37525,1807.9,1807.8,2.1196]
[1745845777416,3.37525,1807.9,1807.8,3.22541]
[1745845777818,3.37525,1807.9,1807.8,2.1196]
[1745845778109,3.37525,1807.9,1807.8,1.10581]
[1745845780415,2.2695,1807.9,1807.8,1.10581]
[1745845780817,2.2695,1807.9,1807.8,3.40541]
[1745845782721,3.2078,1808.0,1807.9,1.10575]
[1745845783219,5.52097,1808.1,1808.0,1.10569]
[1745845783420,3.28507,1808.1,1808.0,1.10569]
[1745845783617,3.28507,1808.1,1808.0,0.82913369]
[1745845786619,3.74320559,1808.1,1808.0,0.82913369]
[1745845786920,1.10569,1808.0,1807.9,3.27559]
[1745845787114,1.10579,1807.9,1807.8,1.10575]
[1745845787310,1.56392655,1807.9,1807.8,1.10575]
[1745845787514,2.05851955,1807.9,1807.8,1.10575]
[1745845787710,2.05851955,1807.9,1807.8,0.69084162]
[1745845788317,2.05845733,1807.9,1807.8,0.69084162]
[1745845791122,9.3932773,1807.9,1807.8,0.69084162]
[1745845791920,9.37827287,1807.9,1807.8,0.69084162]
[1745845792122,1.10581,1807.8,1807.7,4.86081]
[1745845792323,6.0515799,1807.8,1807.7,4.86081]
[1745845792922,6.5461729,1807.8,1807.7,4.86081]
[1745845793620,6.103103,1807.8,1807.7,4.86081]
[1745845793822,6.54643134,1807.8,1807.7,4.86081]
[1745845794023,6.54643134,1807.8,1807.7,6.99991]
[1745845794223,6.54667706,1807.8,1807.7,6.99991]
[1745845794725,6.54667706,1807.8,1807.7,4.86081]
[1745845794918,1.10594,1807.6,1807.5,2.1391]
[1745845795120,5.25190706,1807.6,1807.5,3.24503]
[1745845795415,5.25190706,1807.6,1807.5,1.10593]
[1745845796126,5.25218473,1807.6,1807.5,1.10593]
[1745845797722,8.2732647,1807.6,1807.5,1.10593]
[1745845797922,9.3792047,1807.6,1807.5,2.1163]
[1745845798125,14.8643257,1807.6,1807.5,1.106]
[1745845798719,14.8643257,1807.6,1807.5,0.82936337]
[1745845799125,14.8643257,1807.6,1807.5,1.106]
[1745845800224,14.86431633,1807.6,1807.5,1.106]
[1745845800421,8.27347633,1807.6,1807.5,1.106]
[1745845800624,8.27347633,1807.6,1807.5,6.5644]
[1745845800832,8.27347633,1807.6,1807.5,11.5644]
[1745845801323,8.27351379,1807.6,1807.5,15.3664]
[1745845801828,8.27351379,1807.6,1807.5,10.3664]
[1745845803028,0.93869382,1807.6,1807.5,10.3664]
[1745845803732,0.93869382,1807.6,1807.5,7.1586]
[1745845804329,2.04463382,1807.6,1807.5,3.802]
[1745845804627,5.25243382,1807.6,1807.5,4.908]
[1745845804824,2.04463382,1807.6,1807.5,4.908]
[1745845805324,2.04485838,1807.6,1807.5,1.106]
[1745845805530,0.93891838,1807.6,1807.5,1.106]
[1745845805723,0.93891838,1807.6,1807.5,3.4151]
[1745845806331,0.93891838,1807.6,1807.5,6.6229]
[1745845806829,8.27373835,1807.6,1807.5,6.6229]
[1745845807132,8.3203229,1807.6,1807.5,10.4249]
[1745845807322,8.3203229,1807.6,1807.5,7.2171]
[1745845807822,9.4262629,1807.6,1807.5,7.2171]
[1745845808334,10.4821229,1807.6,1807.5,7.2171]
[1745845809418,11.5880629,1807.6,1807.5,7.2171]
[1745845809623,13.7157629,1807.6,1807.5,7.2171]
[1745845810123,13.7157629,1807.6,1807.5,3.4151]
[1745845810423,13.71553856,1807.6,1807.5,3.4151]
[1745845810734,13.71553856,1807.6,1807.5,1.106]
[1745845811125,13.71557622,1807.6,1807.5,1.106]
[1745845812034,1.106,1807.5,1807.4,4.848]
[1745845812231,3.78742325,1807.5,1807.4,4.848]
[1745845812731,3.78742325,1807.5,1807.4,7.1322]
[1745845812946,4.28201625,1807.5,1807.4,7.1322]
[1745845813125,4.28194316,1807.5,1807.4,7.1322]
[1745845814133,4.28194316,1807.5,1807.4,6.85557514]
[1745845815228,3.17594316,1807.5,1807.4,6.85557514]
[1745845815837,4.28194316,1807.5,1807.4,6.85557514]
[1745845816529,7.48974316,1807.5,1807.4,4.57137514]
[1745845816734,7.48974316,1807.5,1807.4,1.106]
[1745845817032,7.48995783,1807.5,1807.4,1.106]
[1745845818528,1.10606,1807.4,1807.3,3.36346]
[1745845818728,6.21292483,1807.4,1807.3,1.10606]
[1745845818929,6.70751783,1807.4,1807.3,1.10606]
[1745845819626,1.10618,1807.2,1807.1,4.84921]
[1745845819827,5.29943783,1807.2,1807.1,1.10621]
[1745845820231,7.59293783,1807.2,1807.1,1.10621]
[1745845820733,1.10624,1807.1,1807.0,7.16766]
[1745845820934,6.41309783,1807.1,1807.0,7.16766]
[1745845822339,6.41309783,1807.1,1807.0,6.0614]
[1745845822539,1.1063,1807.0,1806.9,1.10632]
[1745845822736,3.77656483,1807.0,1806.9,1.10632]
[1745845823036,4.27115783,1807.0,1806.9,1.10632]
[1745845823236,4.26862872,1807.0,1806.9,1.10632]
[1745845823437,4.26862872,1807.0,1806.0,46.92685507]
[1745845823638,1.1071,1805.7,1805.3,25.50024885]
[1745845823937,1.10722,1805.5,1805.3,25.50024885]
[1745845824144,8.11702,1805.5,1805.3,25.50024885]
[1745845824334,8.60484544,1805.5,1805.3,25.50024885]
[1745845824531,8.60484544,1805.5,1805.4,19.05197899]
[1745845824841,8.6048478,1805.5,1805.4,19.05197899]
[1745845825238,4.31502,1805.5,1805.4,17.3407575]
[1745845825435,4.80280883,1805.5,1805.4,17.3407575]
[1745845826143,4.31502,1805.5,1805.4,17.3407575]
[1745845826537,3.2078,1805.7,1805.4,27.3407575]
[1745845826748,0.53415321,1805.6,1805.5,3.2615]
[1745845826932,3.2078,1805.7,1805.6,1.10716]
[1745845827131,3.2078,1805.7,1805.5,2.1543]
[1745845827132,3.74194789,1805.7,1805.5,15.9563]
[1745845827335,1.64130789,1805.6,1805.5,15.9563]
[1745845827536,2.13587554,1805.6,1805.5,15.9563]
[1745845827945,5.97588,1805.5,1805.0,21.47769885]
[1745845828141,1.10765,1804.8,1804.7,11.55295669]
[1745845828444,1.10765,1804.8,1804.6,36.21665402]
[1745845828445,1.10771,1804.7,1804.6,8.20421916]
[1745845828647,1.63921891,1804.7,1804.6,7.89601916]
[1745845828841,6.16681191,1804.7,1804.6,7.89601916]
[1745845829143,9.96881191,1804.7,1804.6,2.11127216]
[1745845829339,8.86110191,1804.7,1804.0,40.92939973]
[1745845829545,3.2078,1804.4,1804.3,1.10796]
[1745845829747,3.73930891,1804.4,1804.3,2.1489]
[1745845829955,3.73930891,1804.4,1804.3,41.14144649]
[1745845830160,4.23390191,1804.4,1804.3,41.14144649]
[1745845830454,4.23390191,1804.4,1804.3,40.03348649]
[1745845830657,4.23390191,1804.4,1804.3,41.14144649]
[1745845830851,4.23390191,1804.4,1804.3,40.03348649]
[1745845831056,8.03590191,1804.4,1804.3,40.03348649]
[1745845831252,8.03590191,1804.4,1803.8,3.2078]
[1745845831552,0.53150891,1804.3,1804.2,1.10799]
[1745845831854,1.02610191,1804.3,1804.2,1.10799]
[1745845832057,1.02610191,1804.3,1804.2,38.99257649]
[1745845833157,4.82810191,1804.3,1804.2,38.99257649]
[1745845833556,4.296593,1804.3,1804.2,43.99257649]
[1745845833750,4.81975182,1804.3,1804.1,3.33505]
[1745845833955,3.73095882,1804.2,1804.1,41.21963649]
[1745845834151,4.22550716,1804.2,1804.1,27.91563649]
[1745845834355,1.01770716,1804.2,1804.1,43.99263649]
[1745845834554,3e-06,1804.2,1804.1,43.99263649]
[1745845834755,3.802,1804.3,1804.2,1.10802]
[1745845835052,3.802,1804.3,1804.2,15.39282]
[1745845835255,5.466061,1804.5,1804.4,1.1079]
[1745845835559,16.43144554,1805.1,1804.7,11.077]
[1745845835756,9.18864554,1805.1,1805.0,14.2848]
[1745845836156,9.18864554,1805.1,1805.0,3.2078]
[1745845836354,10.29609554,1805.2,1804.8,1.68843901]
[1745845836559,1.10747,1805.1,1805.0,11.077]
[1745845836756,1.10753,1805.0,1804.9,11.077]
[1745845837055,10.29607554,1805.2,1805.0,12.18453]
[1745845837362,10.29607554,1805.2,1805.1,12.18447]
[1745845837363,9.18864554,1805.2,1805.1,12.18447]
[1745845837555,9.18864554,1805.2,1805.1,23.03011415]
[1745845837956,4.31506,1805.5,1805.1,12.03479019]
[1745845838156,4.31506,1805.5,1805.3,2.29644604]
[1745845838358,5.529,1805.2,1804.0,4.31594]
[1745845838551,3.2078,1804.3,1804.1,1.18914604]
[1745845838751,1.10808,1804.1,1804.0,1.18914604]
[1745845839054,4.31588,1804.1,1804.0,1.18914604]
[1745845839262,3.2078,1804.1,1803.7,40.8]
[1745845839455,1.10814,1804.0,1803.9,1.18914604]
[1745845839857,4.3159,1804.1,1803.9,13.14298019]
[1745845840055,3.802,1804.0,1803.9,12.03479019]
[1745845840466,3.802,1804.0,1803.9,13.14299019]
[1745845840662,3.802,1804.0,1803.9,18.14299019]
[1745845841162,3.2078,1804.3,1803.9,17.03479019]
[1745845841367,3.2078,1804.3,1804.2,2.29716604]
[1745845841665,1.10811,1804.1,1804.0,1.18914604]
[1745845841860,3.2078,1804.1,1804.0,1.10814]
[1745845842060,7.91930443,1804.1,1803.9,1.10816]
[1745845842262,10.61322443,1804.1,1803.6,43.57097]
[1745845842565,4.316,1803.9,1803.8,1.18914604]
[1745845842956,3.2078,1803.9,1803.6,1.18914604]
[1745845843158,4.31614,1803.7,1803.5,1.31186874]
[1745845843358,4.31617,1803.7,1803.4,1.14686]
[1745845843560,4.31617,1803.7,1803.5,1.18914604]
[1745845843760,1.10839,1803.6,1803.5,1.18914604]
[1745845843963,3.2078,1803.7,1803.4,0.03838]
[1745845844261,3.2078,1803.5,1803.4,0.03838]
[1745845844461,3.2078,1803.5,1803.4,13.18168019]
[1745845844659,3.2078,1803.5,1803.4,1.14689]
[1745845844863,3.2078,1803.5,1803.4,0.03838]
[1745845845064,5.888,1803.6,1803.5,1.10845]
[1745845845568,3.2078,1803.7,1803.6,1.10839]
[1745845845868,3.91466698,1803.9,1803.8,1.10827]
[1745845846070,3.91466698,1803.9,1803.8,2.29741604]
[1745845846264,3.91466698,1803.9,1803.8,13.14306019]
[1745845846568,3.91466698,1803.9,1803.8,18.14306019]
[1745845846770,10.20379,1804.3,1803.8,13.14306019]
[1745845846963,0.4467584,1804.2,1804.1,2.29722604]
[1745845847170,4.2487584,1804.2,1804.1,1.18914604]
[1745845847368,5.87302783,1804.2,1804.0,1.1081]
[1745845847563,3.802,1804.2,1804.1,1.18914604]
[1745845847869,4.31904794,1804.2,1804.1,2.29722604]
[1745845848075,4.76649885,1804.2,1804.1,13.14287019]
[1745845848367,0.96449885,1804.2,1804.1,13.14287019]
[1745845850063,0.96449885,1804.2,1804.1,18.14287019]
[1745845850558,4.55649462,1804.2,1804.1,18.14287019]
[1745845850761,4.55649462,1804.2,1804.1,1.10808]
[1745845851270,4.55649462,1804.2,1804.1,4.31588]
[1745845851658,4.56138716,1804.2,1804.1,4.31588]
[1745845851863,4.03944668,1804.2,1804.1,4.31588]
[1745845852170,4.56138665,1804.2,1804.1,4.31588]
[1745845852368,4.56138756,1804.2,1804.1,4.31588]
[1745845852668,0.96939179,1804.2,1804.1,4.31588]
[1745845853571,0.96939179,1804.2,1804.1,1.10808]
[1745845853774,5.96939179,1804.2,1804.1,1.10808]
[1745845855466,5.96803503,1804.2,1804.1,1.10808]
[1745845855667,9.5600308,1804.2,1804.1,1.10808]
[1745845857575,9.56026284,1804.2,1804.1,1.10808]
[1745845857775,4.56026284,1804.2,1804.1,1.10808]
[1745845857978,1.67488843,1804.2,1804.1,1.10808]
[1745845860074,1.67488843,1804.2,1804.1,3.38228]
[1745845861079,1.65701574,1804.2,1804.1,3.38228]
[1745845861378,10.84566128,1804.2,1804.1,3.38228]
[1745845861979,10.84566128,1804.2,1804.1,6.59008]
[1745845862579,10.84566128,1804.2,1804.1,3.38228]
[1745845862775,10.8456528,1804.2,1804.1,3.38228]
[1745845864676,1.65700698,1804.2,1804.1,3.38228]
[1745845864980,1.65700698,1804.2,1804.1,1.10808]
[1745845865186,9.18864554,1804.5,1804.4,1.1079]
[1745845865475,7.94015554,1804.5,1804.4,1.1079]
[1745845865681,10.92119902,1804.9,1804.8,1.10765]
[1745845866277,3.2078,1805.0,1804.9,1.10759]
[1745845866481,29.62374617,1805.1,1805.0,1.10753]
[1745845866677,34.62374617,1805.1,1805.0,1.10753]
[1745845866882,29.62374617,1805.1,1805.0,1.10753]
[1745845867078,29.62374617,1805.1,1805.0,3.41893]
[1745845867777,26.13990171,1805.1,1805.0,3.41893]
[1745845868786,31.13990171,1805.1,1805.0,2.3114]
[1745845868978,34.34770171,1805.1,1805.0,3.41893]
[1745845869178,31.13990171,1805.1,1805.0,3.41893]
[1745845869885,26.13990171,1805.1,1805.0,3.41893]
[1745845870285,10.09013936,1805.2,1805.1,1.10747]
[1745845870679,15.09013936,1805.2,1805.1,1.10747]
[1745845871983,10.09013936,1805.2,1805.1,1.10747]
[1745845872379,15.09013936,1805.2,1804.9,2.76894]
[1745845872585,15.09013936,1805.2,1805.1,1.10747]
[1745845873792,1.10747,1805.1,1805.0,2.2241]
[1745845873991,1.10758,1805.0,1804.5,2.76946]
[1745845874192,1.10771,1804.7,1804.6,3.26763]
[1745845874390,3.2078,1804.8,1804.6,3.26763]
[1745845874589,2.1427,1804.7,1804.6,3.26768]
[1745845874991,3.26564,1804.7,1804.6,3.26768]
[1745845875496,1.12294,1804.7,1804.6,3.26768]
[1745845875792,2.76945,1804.6,1804.1,4.3338]
[1745845876094,1.10797,1804.3,1804.2,3.26792]
[1745845876395,4.31575,1804.4,1804.3,1.10796]
[1745845876696,5.43869,1804.4,1804.3,1.10796]
[1745845877195,2.76991,1804.3,1803.7,7.02642]
[1745845877396,3.2078,1803.8,1803.6,4.215]
[1745845877598,3.2078,1804.0,1803.9,1.10816]
[1745845877892,4.77373156,1804.0,1803.9,1.10816]
[1745845878196,4.78853156,1804.0,1803.9,1.10816]
[1745845878991,1.10829,1803.8,1803.7,1.10829]
[1745845879197,6.52385,1803.9,1803.8,1.10825]
[1745845879399,6.98152991,1803.9,1803.8,1.10825]
[1745845879596,8.10446991,1803.9,1803.8,1.10825]
[1745845879996,1.10828,1803.8,1803.7,1.10827]
[1745845880201,3.77378991,1803.8,1803.7,1.10833]
[1745845880398,1.10836,1803.7,1803.6,1.10836]
[1745845880598,7.05543991,1803.7,1803.6,3.35706]
[1745845880799,8.17837991,1803.7,1803.6,3.35706]
[1745845881000,7.07001991,1803.7,1803.6,1.10839]
[1745845881200,8.17839991,1803.7,1803.6,1.10839]
[1745845881797,7.07001991,1803.7,1803.6,1.10839]
[1745845882498,8.17834991,1803.7,1803.6,1.10839]
[1745845882699,1.10839,1803.6,1803.5,3.35712]
[1745845882889,3.84766991,1803.6,1803.5,3.35712]
[1745845883089,1.58061991,1803.6,1803.5,3.35712]
[1745845883295,0.45767991,1803.6,1803.5,3.35712]
[1745845883600,1.58061991,1803.6,1803.5,3.35712]
[1745845883789,0.45767991,1803.6,1803.5,3.35712]
[1745845884194,3.2078,1803.7,1803.6,1.10839]
[1745845884396,3.66439163,1803.7,1803.6,1.10839]
[1745845885805,0.45659163,1803.7,1803.6,1.10839]
[1745845886001,5.888,1803.9,1803.8,1.10827]
[1745845886204,6.34441342,1803.9,1803.8,1.10827]
[1745845886603,0.45641342,1803.9,1803.8,7.53707]
[1745845886803,0.45641342,1803.9,1803.8,12.53707]
[1745845887203,13.29793936,1804.2,1804.1,1.10808]
[1745845887408,13.29793936,1804.2,1803.9,2.77051]
[1745845887409,15.52889936,1804.2,1803.9,2.3186]
[1745845887712,13.29793936,1804.2,1804.1,1.10808]
[1745845888110,13.75436033,1804.2,1804.1,1.10808]
[1745845888308,13.75440522,1804.2,1804.1,1.10808]
[1745845888813,14.86242522,1804.2,1804.1,1.10808]
[1745845889405,10.54660522,1804.2,1804.1,6.10808]
[1745845889604,10.09013936,1804.2,1804.1,1.10808]
[1745845889805,10.09013936,1804.2,1804.1,3.29798]
[1745845890610,10.7968263,1804.2,1804.1,3.29798]
[1745845890812,10.7968263,1804.2,1804.1,2.86161704]
[1745845891201,11.25330286,1804.2,1804.1,2.86161704]
[1745845892213,11.2532697,1804.2,1804.1,2.86161704]
[1745845892512,18.57179602,1804.2,1804.1,2.86161704]
[1745845893416,20.80275602,1804.2,1804.1,1.75353704]
[1745845893617,1.10808,1804.1,1804.0,3.802]
[1745845893812,3.7986234,1804.1,1804.0,3.802]
[1745845894013,4.9215634,1804.1,1804.0,4.91014]
[1745845894211,4.9215634,1804.1,1804.0,1.10814]
[1745845894719,3.8134834,1804.1,1804.0,1.10814]
[1745845895012,0.4564434,1804.1,1804.0,1.10814]
[1745845895910,26.79761499,1804.1,1804.0,1.10814]
[1745845896309,26.79761499,1804.1,1803.8,16.40844]
[1745845896512,0.45628235,1804.0,1803.9,2.2283]
[1745845896914,2.68736235,1804.0,1803.9,3.3365]
[1745845897320,2.68736235,1804.0,1803.9,1.1082]
[1745845897618,1.57922235,1804.0,1803.9,1.1082]
[1745845897916,0.45628235,1804.0,1803.9,3.3365]
[1745845898116,24.26196136,1804.1,1804.0,1.10814]
[1745845898310,1.10814,1804.0,1803.9,3.802]
[1745845898510,3.77640221,1804.0,1803.9,3.802]
[1745845898711,3.77640221,1804.0,1803.9,4.9102]
[1745845898712,4.89934221,1804.0,1803.9,4.9102]
[1745845898914,4.89934221,1804.0,1803.9,7.1665]
[1745845899219,4.89934221,1804.0,1803.9,3.3645]
[1745845899421,4.89951582,1804.0,1803.9,3.3645]
[1745845899717,2.68761582,1804.0,1803.9,3.3645]
[1745845899912,0.45653582,1804.0,1803.9,3.3645]
[1745845900117,1.56493291,1804.0,1803.9,3.3645]
[1745845900314,2.68787291,1804.0,1803.9,3.3645]
[1745845900516,1.1082,1803.9,1803.8,5.32421]
[1745845900716,4.77279291,1803.9,1803.8,7.58051]
[1745845901017,4.77279291,1803.9,1803.8,4.216]
[1745845901018,5.89573291,1803.9,1803.8,4.216]
[1745845901213,8.10763291,1803.9,1803.8,5.32427]
[1745845901406,8.10763291,1803.9,1803.8,4.216]
[1745845902017,1.10827,1803.8,1803.7,0.01124931]
[1745845902214,5.96828855,1803.8,1803.7,0.01124931]
[1745845902418,15.74801855,1803.8,1803.0,2.1559]
[1745845902607,1.10882,1802.9,1802.8,0.04291]
[1745845902818,1.10882,1802.9,1802.8,1.15179]
[1745845902819,0.45721855,1802.9,1802.8,1.15179]
[1745845903119,0.45721855,1802.9,1802.8,4.95379]
[1745845903316,4.7744818,1803.1,1803.0,1.10876]
[1745845903517,3.66546539,1803.1,1803.0,1.10876]
[1745845903920,4.31646,1803.2,1803.1,1.1087]
[1745845904116,3.66548325,1803.2,1803.1,1.1087]
[1745845904620,3.66548325,1803.2,1803.0,4.91071]
[1745845904821,0.45768325,1803.1,1803.0,0.66925058]
[1745845905224,0.45768325,1803.1,1803.0,4.47125058]
[1745845905414,0.45768325,1803.1,1803.0,9.47125058]
[1745845906215,0.45768325,1803.1,1803.0,4.47125058]
[1745845906416,0.45768325,1803.1,1803.0,9.47125058]
[1745845907621,3.2078,1803.4,1803.3,1.10857]
[1745845907824,18.97223503,1803.4,1803.3,1.10857]
[1745845908019,18.97220035,1803.4,1803.3,1.10857]
[1745845908220,18.9721998,1803.4,1803.3,1.10857]
[1745845908420,18.97221427,1803.4,1803.3,3.24227]
[1745845908620,18.97215831,1803.4,1803.3,3.24227]
[1745845908823,18.97213011,1803.4,1803.3,3.24227]
[1745845909020,18.97216231,1803.4,1803.3,3.24227]
[1745845909224,18.51452593,1803.4,1803.3,9.28497]
[1745845909425,18.97211704,1803.4,1803.3,9.28497]
[1745845909620,18.97212503,1803.4,1803.3,9.28497]
[1745845909825,18.9721525,1803.4,1803.3,9.28497]
[1745845910026,15.76435972,1803.4,1803.3,12.49277]
[1745845910227,15.76436321,1803.4,1803.3,9.28497]
[1745845910424,15.76436952,1803.4,1803.3,14.28497]
[1745845910624,15.30672593,1803.4,1803.3,17.49277]
[1745845910824,13.59425593,1803.4,1803.3,17.49277]
[1745845911128,3.81495927,1803.4,1803.3,58.29277]
[1745845911531,2.59915927,1803.4,1803.3,58.29277]
[1745845911734,1.20058927,1803.4,1803.3,58.29277]
[1745845912028,7.2913978,1803.6,1803.5,1.10845]
[1745845912221,7.74911258,1803.6,1803.5,9.31625]
[1745845912423,7.2913978,1803.6,1803.5,9.31625]
[1745845912619,7.2913978,1803.6,1803.5,50.11625]
[1745845913127,7.2913978,1803.6,1803.5,53.91825]
[1745845913332,5.9652978,1803.6,1803.5,53.91825]
[1745845914124,15.41503577,1804.1,1803.5,53.91825]
[1745845914125,3.64678941,1803.9,1803.8,1.10827]
[1745845914332,4.10417461,1803.9,1803.8,9.69597]
[1745845914934,4.10429693,1803.9,1803.8,9.69597]
[1745845915232,4.10429693,1803.9,1803.8,13.49797]
[1745845915634,4.1042747,1803.9,1803.8,13.49797]
[1745845916837,4.10421261,1803.9,1803.8,13.49797]
[1745845917038,4.10421261,1803.9,1803.8,15.65677]
[1745845917632,2.42436941,1803.9,1803.8,20.65677]
[1745845917834,1.25154941,1803.9,1803.8,20.65677]
[1745845918032,0.13739941,1803.9,1803.8,20.65677]
[1745845918222,9.41e-06,1803.9,1803.8,20.65677]
[1745845918622,9.41e-06,1804.0,1803.8,13.59029366]
[1745845918835,9.41e-06,1804.0,1803.9,4.316]
[1745845919129,9.41e-06,1804.0,1803.9,10.54711907]
[1745845919439,9.41e-06,1804.0,1803.9,10.2768]
[1745845920240,9.41e-06,1804.0,1803.9,15.2768]
[1745845920730,9.41e-06,1804.0,1803.9,7.069]
[1745845920930,0.45746225,1804.0,1803.9,11.243]
[1745845921238,0.45746225,1804.0,1803.9,14.4508]
[1745845922933,9.11424726,1804.4,1804.3,1.10796]
[1745845923136,9.11424726,1804.4,1804.3,9.08296]
[1745845923330,9.11424726,1804.4,1804.3,12.29076]
[1745845925137,9.11424726,1804.4,1804.3,9.08296]
[1745845925932,9.11424726,1804.4,1804.3,4.90996]
[1745845926137,15.22214726,1804.4,1804.3,5.28096]
[1745845926340,14.11424726,1804.4,1804.3,5.28096]
[1745845926637,9.02043037,1804.4,1804.3,5.28096]
[1745845927040,12.22823037,1804.4,1804.3,5.28096]
[1745845927541,13.33613037,1804.4,1804.3,5.28096]
[1745845927735,14.44083037,1804.4,1804.3,5.28096]
[1745845929539,12.34093037,1804.4,1804.3,5.28096]
[1745845929730,11.23303037,1804.4,1804.3,5.28096]
[1745845929933,12.34093037,1804.4,1804.3,5.28096]
[1745845930132,11.23303037,1804.4,1804.3,5.28096]
[1745845930842,12.34093037,1804.4,1804.3,4.173]
[1745845931145,11.23303037,1804.4,1804.3,5.28096]
[1745845932237,11.23303037,1804.4,1804.3,9.08296]
[1745845932535,11.23303037,1804.4,1804.3,7.975]
[1745845932735,5.53993,1804.3,1803.9,4.134]
[1745845933042,5.3275,1804.2,1804.0,1.10813]
[1745845933240,3.2078,1804.1,1804.0,1.10813]
[1745845933432,6.43558,1804.1,1804.0,1.10813]
[1745845933637,5.3275,1804.1,1804.0,1.10813]
[1745845933944,5.3275,1804.1,1803.9,5.24217]
[1745845934143,1.10814,1804.0,1803.9,6.2556]
[1745845934343,1.10826,1803.9,1803.7,4.31608]
[1745845934542,3.22797,1803.8,1803.7,4.134]
[1745845934743,7.55377,1803.8,1803.7,4.134]
[1745845935043,8.00443647,1803.8,1803.7,4.134]
[1745845935543,8.00480114,1803.8,1803.7,4.134]
[1745845935746,4.77683114,1803.8,1803.7,5.24233]
[1745845936142,4.77683114,1803.8,1803.7,9.04433]
[1745845937242,24.60083451,1803.8,1803.7,9.04433]
[1745845937446,24.14980337,1803.8,1803.7,8.45013]
[1745845937649,24.60140669,1803.8,1803.7,15.57933]
[1745845937849,24.14980337,1803.8,1803.7,15.57933]
[1745845938147,24.60176591,1803.8,1803.7,19.38133]
[1745845938347,24.14980337,1803.8,1803.7,19.38133]
[1745845938553,24.853269,1804.3,1804.2,1.10802]
[1745845938747,25.3053094,1804.3,1804.2,5.24202]
[1745845938942,2.7748404,1804.3,1804.2,5.24202]
[1745845939137,2.7748404,1804.3,1804.2,9.04402]
[1745845939445,28.159809,1804.5,1804.4,1.1079]
[1745845939749,30.9346864,1804.5,1804.4,1.1079]
[1745845940149,1.1079,1804.4,1804.3,1.10794]
[1745845940346,2.7517774,1804.4,1804.3,1.10794]
[1745845941146,2.7517774,1804.4,1804.3,4.90994]
[1745845943148,2.75200005,1804.4,1804.3,4.90994]
[1745845943346,2.2997,1804.4,1804.3,7.10984]
[1745845943643,2.75194904,1804.4,1804.3,7.10984]
[1745845944149,0.45224904,1804.4,1804.3,15.31764]
[1745845944448,9.15396666,1804.6,1804.5,1.10784]
[1745845944650,9.60637675,1804.6,1804.5,4.31564]
[1745845944943,9.15396666,1804.6,1804.5,4.31564]
[1745845945147,9.15396666,1804.6,1804.5,8.11764]
[1745845945347,9.60636734,1804.6,1804.5,8.11764]
[1745845945849,9.60636734,1804.6,1804.5,48.91764]
[1745845946450,9.60636734,1804.6,1804.5,49.22502573]
[1745845947047,9.60636734,1804.6,1804.5,48.91764]
[1745845947249,9.60602463,1804.6,1804.5,48.91764]
[1745845947449,9.60601428,1804.6,1804.5,48.91764]
[1745845948155,10.71379428,1804.6,1804.5,3.802]
[1745845948347,10.71379428,1804.6,1804.5,4.90984]
[1745845948850,10.71358128,1804.6,1804.5,3.802]
[1745845949046,9.60580128,1804.6,1804.5,4.90984]
[1745845949349,9.60579954,1804.6,1804.5,4.90984]
[1745845949542,12.89477954,1804.6,1804.5,3.802]
[1745845949954,16.10257954,1804.6,1804.5,3.802]
[1745845950147,1.10784,1804.5,1804.4,4.134]
[1745845950343,3.85527288,1804.5,1804.4,4.134]
[1745845951148,1.10802,1804.2,1804.1,4.133]
[1745845951353,1.55976136,1804.2,1804.1,4.133]
[1745845951547,1.55976136,1804.2,1804.1,44.933]
[1745845951853,1.55981785,1804.2,1804.1,44.933]
[1745845952042,0.45179785,1804.2,1804.1,46.04108]
[1745845952241,1.55981785,1804.2,1804.1,44.933]
[1745845952437,0.45179785,1804.2,1804.1,46.04108]
[1745845952841,2.74739785,1804.2,1804.1,46.04108]
[1745845953052,2.74739152,1804.2,1804.1,46.04108]
[1745845953245,2.74739152,1804.2,1804.1,48.31158]
[1745845953953,2.74740865,1804.2,1804.1,48.31158]
[1745845954151,18.2978558,1804.2,1804.1,48.31158]
[1745845954649,19.4058758,1804.2,1804.1,44.933]
[1745845955250,19.4058758,1804.2,1804.1,46.04108]
[1745845955452,1.10808,1804.1,1804.0,3.802]
[1745845955648,3.77648865,1804.1,1804.0,3.802]
[1745845956147,1.10814,1804.0,1803.9,4.134]
[1745845956447,0.45180865,1804.0,1803.9,5.2422]
[1745845956642,0.45190747,1804.1,1803.9,6.2695]